[Event "37th ECCC 2022"]
[Site "Mayrhofen"]
[Date "2022.10.06"]
[Round "4.7"]
[White "Carlsen, Magnus"]
[Black "Harikrishna, Pentala"]
[Result "1-0"]
[ECO "A20"]
[WhiteElo "2856"]
[BlackElo "2717"]
[Annotator "TA"]
[PlyCount "85"]
[EventDate "2022.10.03"]
[EventType "team-tourn"]
[EventCountry "AUT"]
[SourceTitle "playchess.com"]
[Source "ChessBase"]
[SourceQuality "1"]
[TimeControl "40/5400+30:1800+30"]

{[%evp 11,85,3,20,8,3,0,0,0,0,0,10,11,34,25,39,30,31,21,33,27,61,51,48,57,44,25,32,22,35,12,18,24,16,27,22,12,34,17,36,27,54,45,75,81,54,32,229,243,243,243,228,220,410,401,375,378,12841,12841,12841,12842,12842,12842,12842,12841,12844,12843,12844,12844,12845,12846,12847,12847,12848,12848,27999,27999]} 1. c4 {[%emt 0:00:33] Ribli,Z} e5 {[%emt 0:00:08]} 2. g3 {[%emt 0:00:07]} c6 {[%emt 0:00:50]} 3. d4 {[%emt 0:00:33]} Bb4+ {[%emt 0:00:15]} 4. Bd2 {[%emt 0:04:04]} Bxd2+ {[%emt 0:00:09]} 5. Qxd2 {[%emt 0:00:04]} d6 {[%emt 0:00:07]} 6. Nc3 {[%emt 0:01:48]} Nf6 {[%emt 0:00:36]} 7. e4 $5 {[%emt 0:04:32][%mdl 4] An interesting side line. A20: English Opening: 1...e5.} O-O {[%emt 0:01:18] [#]} 8. Nge2 $146 {[%emt 0:03:43]} ({Predecessor:} 8. Bg2 Nbd7 9. Nf3 a6 10. O-O b5 11. cxb5 axb5 12. b4 Bb7 13. Rfe1 Re8 14. a4 bxa4 15. dxe5 dxe5 16. Nxa4 {½-½ (35) Kallai,G (2455)-Leko,P (2460) Hungary 1992 CBM 034 [Ribli,Z]}) 8... b5 {[%emt 0:08:55]} 9. cxb5 {[%emt 0:04:22] The position is equal.} cxb5 {[%emt 0:01:17]} 10. a3 {[%emt 0:16:00]} a5 {[%emt 0:08:49]} 11. Bg2 {[%emt 0:03:36]} Bb7 {[%emt 0:10:25]} 12. O-O {[%emt 0:02:51]} b4 {[%emt 0:09:44]} 13. axb4 {[%emt 0:01:34]} axb4 {[%emt 0:00:10]} 14. Nd5 {[%emt 0:00:20]} Nxd5 {[%emt 0:05:57]} 15. exd5 {[%emt 0:02:47]} Qb6 {[%emt 0:00:16]} 16. Rxa8 {[%emt 0:01:03]} Bxa8 {[%emt 0:00:05]} 17. dxe5 {[%emt 0:00:07]} dxe5 {[%emt 0:00:04]} 18. g4 {[%emt 0:02:42]} Nd7 {[%emt 0:05:09]} 19. Ng3 {[%emt 0:02:04]} g6 {[%emt 0:08:33]} 20. Rc1 {[%emt 0:02:18]} Rd8 {[%emt 0:04:56]} 21. Ne4 {[%emt 0:14:06]} Nf6 {[%emt 0:01:37]} 22. Nxf6+ {[%emt 0:00:07]} Qxf6 {[%emt 0:00:06]} 23. Rc5 {[%emt 0:01:46]} Qb6 {[%emt 0:02:28]} 24. Qe3 {[%emt 0:01:21][%cal Oc5c8] Threatens to win with Rc8!} Qa7 {[%emt 0:04:30]} 25. Qc1 {[%emt 0:03:17]} Bb7 {[%emt 0:02:04]} 26. h4 {[%emt 0:03:35]} Qb6 {[%emt 0:09:13]} 27. h5 {[%emt 0:01:00]} h6 {[%emt 0:00:29]} 28. Qe3 {[%emt 0:03:13][%cal Oc5c8] Rc8! is the strong threat.} gxh5 $2 {[%emt 0:05:31] [#] A mistake that costs the game.} (28... Rd6 $14) 29. Rc8 $3 $18 {[%emt 0:00:36][%mdl 512]} Qd6 {[%emt 0:00:17]} 30. Rxd8+ {[%emt 0:00:07][%mdl 64] Deflection} Qxd8 {[%emt 0:00:03]} 31. Qxh6 {[%emt 0:02:39] Black must now prevent Be4.} Bxd5 {[%emt 0:04:09] [#]} (31... Qh4 {keeps fighting.} 32. Qxh5 (32. gxh5 e4 $16) 32... Qf6) 32. Qd2 $1 {[%emt 0:00:10]} hxg4 {[%emt 0:00:27]} (32... e4 $2 33. Bxe4 (33. Qxb4 hxg4 34. Bxe4 Bxe4 $11) (33. gxh5 Qd7 $11) 33... Qh4 34. Qxd5 $18) 33. Qxd5 {[%emt 0:00:24]} ({Weaker is} 33. Bxd5 Kg7 34. Kh2 f5 $18) 33... Qxd5 {[%emt 0:02:38]} (33... Qf6 34. Qe4 Qf4 35. Qxf4 exf4) 34. Bxd5 {[%emt 0:00:03][%mdl 4096] Endgame KB-KP} Kg7 {[%emt 0:00:08]} 35. Kg2 {[%emt 0:07:14]} f5 {[%emt 0:00:50]} 36. Kg3 {[%emt 0:01:02]} Kf6 {[%emt 0:01:05]} 37. Kh4 {[%emt 0:02:00]} e4 {[%emt 0:02:30]} 38. Bc6 {[%emt 0:00:15]} Ke5 {[%emt 0:01:58]} 39. Kg3 {[%emt 0:01:12]} Kd4 {[%emt 0:01:37]} 40. Kf4 {[%emt 0:00:25]} Kd3 {[%emt 0:00:30]} 41. Kxf5 {[%emt 0:32:32]} e3 {[%emt 0:01:24]} 42. fxe3 {[%emt 0:00:00]} Kxe3 {[%emt 0:00:09] [#]} 43. b3 $1 {[%emt 0:00:00] Weighted Error Value: White=0.04 (flawless) /Black=0.44} ({Worse is} 43. Kxg4 b3 $11) 1-0

[Event "37th ECCC 2022"]
[Site "Mayrhofen"]
[Date "2022.10.06"]
[Round "4.8"]
[White "Vidit, Santosh Gujrathi"]
[Black "Tari, Aryan"]
[Result "1-0"]
[ECO "C45"]
[WhiteElo "2710"]
[BlackElo "2656"]
[Annotator "TA"]
[PlyCount "69"]
[EventDate "2022.10.03"]
[EventType "team-tourn"]
[EventCountry "AUT"]
[SourceTitle "playchess.com"]
[Source "ChessBase"]
[SourceQuality "1"]
[TimeControl "40/5400+30:1800+30"]

{[%evp 11,69,0,0,8,8,4,1,0,1,0,0,0,9,0,16,14,22,0,0,0,0,0,8,20,27,23,25,33,41,38,37,46,77,79,79,78,105,107,110,115,112,117,103,86,239,239,235,235,281,240,240,220,364,358,527,529,488,442,509,430]} 1. e4 {[%emt 0:00:38]} e5 {[%emt 0:00:31]} 2. Nf3 {[%emt 0:00:09]} Nc6 {[%emt 0:00:06]} 3. d4 {[%emt 0:00:08]} exd4 {[%emt 0:00:32]} 4. Nxd4 {[%emt 0:00:08]} Nf6 {[%emt 0:01:12]} 5. Nxc6 {[%emt 0:00:08]} bxc6 {[%emt 0:00:05]} 6. Nd2 {[%emt 0:00:06]} d5 {[%emt 0:11:03] 6...d5 is better than 6...Bc5.} 7. exd5 {[%emt 0:00:18] C45: Scotch Game.} cxd5 {[%emt 0:01:04]} 8. Bb5+ {[%emt 0:00:08]} Bd7 {[%emt 0:00:14]} 9. Bxd7+ {[%emt 0:00:08] The position is equal.} Qxd7 {[%emt 0:00:08]} 10. O-O {[%emt 0:00:09]} Be7 {[%emt 0:01:35]} 11. b3 {[%emt 0:00:08]} O-O {[%emt 0:01:22]} 12. Bb2 {[%emt 0:00:05]} a5 {[%emt 0:09:52]} 13. a4 {[%emt 0:00:11]} Qf5 {[%emt 0:08:14]} 14. Re1 {[%emt 0:00:32] [#]} Bc5 $146 {[%emt 0:06:32]} ({Predecessor:} 14... Rfe8 15. Nf3 Bb4 16. Nd4 Qd7 17. Rxe8+ Rxe8 18. Qf3 c5 19. Nf5 d4 20. Rf1 h5 {1-0 (64) Ganguly,S (2633)-Matlakov,M (2699) Moscow 2019}) 15. Nf3 {[%emt 0:00:38]} Ne4 {[%emt 0:13:49]} 16. Re2 {[%emt 0:00:23]} Rfe8 {[%emt 0:02:46]} 17. Qd3 {[%emt 0:00:40]} c6 {[%emt 0:10:10]} 18. Rae1 {[%emt 0:14:58]} h6 {[%emt 0:01:31]} 19. Nd4 {[%emt 0:05:50]} Qd7 {[%emt 0:02:21]} 20. f3 {[%emt 0:03:38]} Nd6 {[%emt 0:02:15]} 21. Rxe8+ {[%emt 0:18:30]} Rxe8 {[%emt 0:00:54]} 22. Rxe8+ {[%emt 0:00:12]} Qxe8 {[%emt 0:00:54] [#]} 23. Kf1 {[%emt 0:00:15] Against Qe1+} Qc8 {[%emt 0:05:55]} 24. Qc3 {[%emt 0:03:10][%csl LRa5,LRc5]} Bxd4 {[%emt 0:09:47]} (24... Qa6+ $2 25. Ne2 Bd4 26. Qxd4 $18) 25. Qxd4 $16 {[%emt 0:00:13][%csl Gb2][%cal Rd4g7][%mdl 4096] Endgame KQB-KQN} Nf5 {[%emt 0:00:01]} 26. Qd3 {[%emt 0:12:26]} c5 {[%emt 0:02:12]} 27. Bc3 {[%emt 0:00:14]} c4 $2 {[%emt 0:02:59] [#] Loses the game.} (27... Nd4 $16 {was worth a try.}) 28. bxc4 $18 {[%emt 0:00:10]} dxc4 {[%emt 0:01:40]} 29. Qe4 {[%emt 0:00:19]} Qd7 {[%emt 0:03:20]} 30. Ke2 {[%emt 0:04:51]} Nd6 {[%emt 0:01:26]} 31. Qa8+ {[%emt 0:06:08]} Kh7 {[%emt 0:00:01]} (31... Ne8 $142 32. Qxa5 (32. Bxa5 Qxa4 33. Ke3 Qa3+ 34. Kd2 Qa4 $14) 32... Nc7) 32. Qxa5 {[%emt 0:00:11]} ({Less strong is} 32. Qd5 Qe7+ 33. Kf1 Nb7 34. Qxc4 Qe8 $16) 32... Qe6+ {[%emt 0:00:05]} (32... Qc6 {was necessary.} 33. Bb4 Ne8 34. Qf5+ Kg8) 33. Qe5 {[%emt 0:00:26] White is clearly winning.} Qg6 {[%emt 0:00:06]} 34. Kd1 {[%emt 0:00:19] Active counter play!} Nc8 {[%emt 0:01:45]} 35. Qg3 {[%emt 0:01:15] Weighted Error Value: White=0.02 (flawless) /Black=0.30} 1-0

[Event "37th ECCC 2022"]
[Site "Mayrhofen"]
[Date "2022.10.06"]
[Round "4.9"]
[White "Hansen, Eric"]
[Black "Wojtaszek, Radoslaw"]
[Result "1/2-1/2"]
[ECO "C88"]
[WhiteElo "2613"]
[BlackElo "2693"]
[Annotator "TA"]
[PlyCount "53"]
[EventDate "2022.10.03"]
[EventType "team-tourn"]
[EventCountry "AUT"]
[SourceTitle "playchess.com"]
[Source "ChessBase"]
[SourceQuality "1"]
[TimeControl "40/5400+30:1800+30"]

{[%evp 16,53,7,14,12,20,18,18,27,0,0,0,0,0,0,0,0,0,0,0,0,0,0,0,0,0,0,0,0,0,0,0,0,0,0,0,0,0,0,0]} 1. e4 {[%emt 0:00:52]} e5 {[%emt 0:00:05]} 2. Nf3 {[%emt 0:00:18]} Nc6 {[%emt 0:00:04]} 3. Bb5 {[%emt 0:01:15]} a6 {[%emt 0:00:07]} 4. Ba4 {[%emt 0:00:34]} Nf6 {[%emt 0:00:08]} 5. O-O {[%emt 0:01:34]} Be7 {[%emt 0:00:06]} 6. Re1 {[%emt 0:01:38]} b5 {[%emt 0:00:09]} 7. Bb3 {[%emt 0:00:05]} O-O {[%emt 0:00:07]} 8. h3 {[%emt 0:01:32]} Bb7 {[%emt 0:00:27]} 9. d3 {[%emt 0:02:07]} d5 {[%emt 0:00:18] C88: Closed Ruy Lopez: Anti-Marshall Systems.} 10. exd5 {[%emt 0:00:50]} Nxd5 {[%emt 0:00:07]} 11. a4 $1 {[%emt 0:05:27][%mdl 4] is now more promising than 11.Nxe5.} Nd4 {[%emt 0:00:32]} 12. Nxd4 {[%emt 0:00:09]} (12. Nbd2 {with more complications.} Nxb3 13. Nxb3 f6 14. Na5) 12... exd4 {[%emt 0:00:06] The position is equal.} 13. axb5 {[%emt 0:01:43]} axb5 {[%emt 0:00:06]} 14. Rxa8 {[%emt 0:00:14]} Bxa8 {[%emt 0:00:13]} 15. Na3 {[%emt 0:02:10]} Bb4 {[%emt 0:00:17]} 16. Bd2 {[%emt 0:00:15]} Bxd2 {[%emt 0:00:13]} 17. Qxd2 {[%emt 0:00:05]} Qf6 {[%emt 0:01:52]} 18. Bxd5 {[%emt 0:04:28]} ({Of course not} 18. Nxb5 Nf4 19. f3 (19. Nxc7 $2 Qg5 $19) 19... Qh6 $17) 18... Bxd5 {[%emt 0:00:07]} 19. Nxb5 {[%emt 0:00:33]} Bxg2 {[%emt 0:02:29][%mdl 64] [#] Decoy} 20. Kxg2 {[%emt 0:00:06]} Qc6+ {[%emt 0:00:05]} 21. Kh2 {[%emt 0:02:15] Strongly threatening Na3.} Qxb5 $11 {[%emt 0:00:07][%mdl 4096] Endgame KQR-KQR} 22. Qf4 {[%emt 0:00:57][%csl LRc7,LRd4] [#]} Qc5 $5 $146 {[%emt 0:07:17][%mdl 8] An interesting novelty.} ({Predecessor:} 22... c5 23. b3 Qa5 24. Re2 Qa1 25. Qd2 Qa8 26. Qf4 g6 27. Re5 Qb8 28. Kg3 Qd6 {1-0 (85) Wei,Y (2735)-Inarkiev,E (2690) Magas 2018}) 23. Re2 {[%emt 0:05:09]} g6 {[%emt 0:02:28]} 24. Qe5 {[%emt 0:04:10]} Qb6 {[%emt 0:01:06]} 25. Qf4 {[%emt 0:06:06]} Qc5 {[%emt 0:03:45]} 26. Qe5 {[%emt 0:03:02]} Qb6 {[%emt 0:01:51]} 27. Qf4 {[%emt 0:01:37] An interesting draw.  Weighted Error Value: White=0.02 (flawless) /Black=0.00 (flawless)} 1/2-1/2

[Event "37th ECCC 2022"]
[Site "Mayrhofen"]
[Date "2022.10.06"]
[Round "4.10"]
[White "Navara, David"]
[Black "Christiansen, Johan-Sebastian"]
[Result "1/2-1/2"]
[ECO "D37"]
[WhiteElo "2676"]
[BlackElo "2576"]
[Annotator "TA"]
[PlyCount "74"]
[EventDate "2022.10.03"]
[EventType "team-tourn"]
[EventCountry "AUT"]
[SourceTitle "playchess.com"]
[Source "ChessBase"]
[SourceQuality "1"]
[TimeControl "40/5400+30:1800+30"]

{[%evp 9,74,27,41,0,0,0,15,24,37,28,25,31,29,32,30,35,34,41,38,30,35,37,28,21,27,17,70,63,62,62,63,62,62,62,70,70,62,53,44,44,33,33,50,13,24,14,59,9,9,9,9,9,9,9,9,9,9,9,9,9,9,0,0,0,0,0,0]} 1. d4 {[%emt 0:00:02]} Nf6 {[%emt 0:06:01]} 2. c4 {[%emt 0:00:08]} e6 {[%emt 0:00:06]} 3. Nf3 {[%emt 0:00:04]} d5 {[%emt 0:00:07]} 4. Nc3 {[%emt 0:00:04]} dxc4 {[%emt 0:02:25]} 5. e4 {[%emt 0:00:07]} Bb4 {[%emt 0:01:06]} 6. Bxc4 {[%emt 0:00:14] D24: Queen's Gambit Accepted: 3 Nf3 Nf6 4 Nc3.} Nxe4 {[%emt 0:00:08]} 7. O-O {[%emt 0:00:08]} Nf6 {[%emt 0:00:03]} 8. Qa4+ {[%emt 0:00:20]} Nc6 {[%emt 0:00:02]} 9. Ne5 {[%emt 0:00:25]} Rb8 {[%emt 0:00:14]} ({Don't play} 9... Bd7 10. Nxc6 Bxc3 11. Nxd8 $16) 10. d5 {[%emt 0:06:03]} exd5 {[%emt 0:01:05] [#]} 11. Nxd5 {[%emt 0:00:12]} Nxd5 {[%emt 0:00:11]} 12. Nxc6 {[%emt 0:00:09]} bxc6 {[%emt 0:00:09]} 13. Qxc6+ {[%emt 0:00:08]} Qd7 {[%emt 0:00:16]} 14. Qxd5 {[%emt 0:05:48] Threatens to win with Qe5+.} O-O {[%emt 0:01:58]} 15. Qxd7 {[%emt 0:11:12]} (15. Be3 {feels hotter.} a5 16. Qxd7 Bxd7 17. Rfd1) 15... Bxd7 {[%emt 0:00:51]} 16. Rd1 {[%emt 0:00:19]} Bd6 {[%emt 0:01:07]} 17. b3 {[%emt 0:01:12]} a5 {[%emt 0:26:13]} (17... Bb5 $11) 18. Ba3 {[%emt 0:03:43]} Bxa3 {[%emt 0:11:04]} 19. Rxd7 {[%emt 0:00:19]} Bd6 {[%emt 0:02:21]} 20. Rd1 {[%emt 0:05:47] [#]} Rbe8 $146 {[%emt 0:14:23]} ({Predecessor:} 20... g6 21. g3 Kg7 22. Rd5 Ra8 23. a4 Kh8 24. h4 f5 25. h5 gxh5 26. Bd3 h4 27. Bxf5 hxg3 28. Rxh7+ Kg8 29. Bd3 Rf3 30. Rg5+ Kf8 31. Bc4 Ke8 32. Bd5 {1-0 (32) Bindrich,F (2610)-Pavlov,S (2471) Skopje 2019}) 21. g3 {[%emt 0:00:46]} Re5 {[%emt 0:06:56]} 22. f4 {[%emt 0:02:28]} Rc5 {[%emt 0:00:09][%cal Oa5a4]} 23. a4 {[%emt 0:15:53] White has more active pieces.} g6 {[%emt 0:00:17]} 24. Kg2 {[%emt 0:00:56]} Kg7 {[%emt 0:00:16]} 25. h4 {[%emt 0:11:52]} Kf6 {[%emt 0:02:53][%cal Oc5c4]} 26. Re1 {[%emt 0:03:03]} h6 {[%emt 0:07:14]} 27. Kh3 {[%emt 0:00:33][%cal Oe1e8] [#] aiming for Re8!} Kg7 {[%emt 0:07:18]} 28. Kg4 {[%emt 0:11:13]} (28. Re6 $14) 28... Rf5 $11 {[%emt 0:00:44] The position is equal.} 29. Re6 {[%emt 0:16:50]} h5+ {[%emt 0:01:46]} 30. Kh3 {[%emt 0:01:30]} Kh6 {[%emt 0:00:45]} 31. Re3 {[%emt 0:00:48]} Kg7 {[%emt 0:00:15]} 32. Kg2 {[%emt 0:02:26]} Rb8 {[%emt 0:00:51]} 33. Rd3 {[%emt 0:01:32]} Re8 {[%emt 0:03:12]} 34. Kf3 {[%emt 0:00:22]} Kf8 {[%emt 0:01:26]} 35. Rd5 {[%emt 0:00:13]} Rxd5 {[%emt 0:01:14]} 36. Bxd5 {[%emt 0:00:04]} Re7 {[%emt 0:00:05]} 37. Rxe7 {[%emt 0:00:07]} Kxe7 {[%emt 0:00:05] Weighted Error Value: White=0.06 (flawless) /Black=0.07 (flawless)} 1/2-1/2

[Event "37th ECCC 2022"]
[Site "Mayrhofen"]
[Date "2022.10.06"]
[Round "4.11"]
[White "Urkedal, Frode Olav Olsen"]
[Black "Grandelius, Nils"]
[Result "1/2-1/2"]
[ECO "D19"]
[WhiteElo "2523"]
[BlackElo "2651"]
[Annotator "TA"]
[PlyCount "63"]
[EventDate "2022.10.03"]
[EventType "team-tourn"]
[EventCountry "AUT"]
[SourceTitle "playchess.com"]
[Source "ChessBase"]
[SourceQuality "1"]
[TimeControl "40/5400+30:1800+30"]

{[%evp 23,63,35,40,9,0,0,26,5,11,13,12,0,0,0,0,0,0,0,0,0,0,0,0,0,0,0,0,0,0,0,0,0,0,0,0,0,0,0,0,0,0,0]} 1. d4 {[%emt 0:01:02]} d5 {[%emt 0:00:40]} 2. c4 {[%emt 0:00:08]} c6 {[%emt 0:00:04]} 3. Nf3 {[%emt 0:00:06]} Nf6 {[%emt 0:00:05]} 4. Nc3 {[%emt 0:00:06]} dxc4 {[%emt 0:00:58]} 5. a4 {[%emt 0:00:13]} Bf5 {[%emt 0:00:38]} 6. e3 {[%emt 0:00:20]} e6 {[%emt 0:00:57]} 7. Bxc4 {[%emt 0:00:07]} Bb4 {[%emt 0:00:25]} 8. O-O {[%emt 0:00:32]} O-O {[%emt 0:00:22]} 9. Qe2 {[%emt 0:00:44]} Bg6 {[%emt 0:01:13]} 10. Ne5 {[%emt 0:02:55]} Nbd7 {[%emt 0:00:51]} 11. Nxg6 {[%emt 0:00:10]} hxg6 {[%emt 0:00:05]} 12. Rd1 {[%emt 0:00:40]} Qe7 {[%emt 0:00:58] 12...Qc7 is setting a new trend.} 13. Bd2 {[%emt 0:06:40] D19: Slav Defence: 5 a4 Bf5 6 e3: Main line with 9 Qe2.} Rad8 {[%emt 0:18:56] [#]} 14. a5 $146 {[%emt 0:04:23][%cal Ba4a5,Ba5a6][%mdl 32]} ({Predecessor:} 14. Be1 a5 15. f3 e5 16. d5 cxd5 17. Nxd5 Nxd5 18. Bxd5 Nf6 19. Bc4 e4 20. f4 b6 {1-0 (77) Quesada Perez,Y (2615)-Belozerov,A (2515) Chess.com INT 2019}) 14... e5 {[%emt 0:17:17]} 15. d5 {[%emt 0:21:09] White has an edge.} e4 {[%emt 0:06:34] The position is equal.} 16. a6 {[%emt 0:05:44]} cxd5 {[%emt 0:09:37]} (16... Nb8 {is interesting.} 17. dxc6 bxc6 18. Na4 Bxd2 19. Rxd2 Nbd7) 17. Nxd5 {[%emt 0:03:43]} Nxd5 {[%emt 0:00:07]} 18. Bxd5 {[%emt 0:00:04]} Bxd2 {[%emt 0:03:45]} 19. Rxd2 {[%emt 0:00:09]} bxa6 {[%emt 0:00:35]} 20. Rad1 {[%emt 0:13:00]} Nb6 {[%emt 0:02:28] Prevents Qc4.} 21. Qxa6 {[%emt 0:01:58]} Rxd5 {[%emt 0:04:26]} 22. Rxd5 {[%emt 0:00:08]} Nxd5 {[%emt 0:00:06]} 23. Rxd5 {[%emt 0:00:05]} Rd8 {[%emt 0:04:15]} 24. Rxd8+ {[%emt 0:06:00]} Qxd8 $11 {[%emt 0:00:02][%mdl 4096] Endgame KQ-KQ} 25. h3 {[%emt 0:00:34]} Qe7 {[%emt 0:01:51]} 26. Qc4 {[%emt 0:03:24]} Kh7 {[%emt 0:00:49]} 27. b4 {[%emt 0:00:10]} f5 {[%emt 0:01:23]} 28. Qc5 {[%emt 0:03:42]} Qd7 {[%emt 0:00:58]} 29. b5 {[%emt 0:00:21]} Qd1+ {[%emt 0:03:09]} 30. Kh2 {[%emt 0:00:07]} Qf1 {[%emt 0:00:52]} 31. Kg3 {[%emt 0:00:39]} Qe2 {[%emt 0:00:51]} 32. Qxa7 {[%emt 0:07:27] A balanced but interesting game.  Weighted Error Value: White=0.05 (flawless) /Black=0.02 (flawless)} 1/2-1/2

[Event "37th ECCC 2022"]
[Site "Mayrhofen"]
[Date "2022.10.06"]
[Round "4.12"]
[White "Ragger, Markus"]
[Black "Haug, Johannes"]
[Result "1-0"]
[ECO "C72"]
[WhiteElo "2632"]
[BlackElo "2478"]
[Annotator "TA"]
[PlyCount "57"]
[EventDate "2022.10.03"]
[EventType "team-tourn"]
[EventCountry "AUT"]
[SourceTitle "playchess.com"]
[Source "ChessBase"]
[SourceQuality "1"]
[TimeControl "40/5400+30:1800+30"]

{[%evp 12,56,28,15,27,14,30,41,28,39,35,42,22,20,58,58,82,88,88,90,78,91,121,93,121,102,147,100,187,44,72,61,47,0,0,-4,21,0,427,380,818,793,29989,29990,29998,29999,29999]} 1. e4 {[%emt 0:00:01] Edouard,Romain} e5 {[%emt 0:00:05]} 2. Nf3 {[%emt 0:00:05]} Nc6 {[%emt 0:00:02]} 3. Bb5 {[%emt 0:00:07]} a6 {[%emt 0:00:18]} 4. Ba4 {[%emt 0:00:03]} d6 {[%emt 0:00:14]} 5. O-O {[%emt 0:00:17]} Bd7 {[%emt 0:00:17]} 6. c4 {[%emt 0:00:14]} Nf6 {[%emt 0:01:45]} 7. Nc3 {[%emt 0:03:16]} (7. d4 {with more complications.} b5 8. Bc2 Bg4 9. dxe5 Bxf3 10. Qxf3 Nd4 11. Qd3) 7... Nd4 {[%emt 0:04:29] C72: Ruy Lopez: Deferred Steinitz: 5 0-0.} 8. Bxd7+ {[%emt 0:00:30]} Qxd7 {[%emt 0:00:40]} 9. Nxd4 {[%emt 0:00:24]} exd4 {[%emt 0:00:09] White is slightly better.} 10. Ne2 {[%emt 0:00:04] [#]} Nxe4 $146 {[%emt 0:16:47]} ({Predecessor:} 10... c5 11. d3 g6 12. b4 Be7 13. bxc5 dxc5 14. a4 O-O 15. Rb1 Nh5 16. Bh6 Rfb8 {1-0 (42) Edouard,R (2640)-Huebner,R (2575) Switzerland 2019 CBM 193 Extra [Edouard,Romain]}) 11. Nxd4 {[%emt 0:02:58] [#] Re1 is the strong threat.} Ng5 {[%emt 0:02:50]} 12. d3 {[%emt 0:02:43]} Ne6 {[%emt 0:02:13]} 13. Re1 {[%emt 0:23:07]} O-O-O {[%emt 0:12:26]} 14. Nxe6 {[%emt 0:02:22] White is more active.} fxe6 {[%emt 0:00:44]} 15. b4 {[%emt 0:00:03]} Be7 {[%emt 0:06:33]} 16. Rb1 {[%emt 0:06:29]} b6 {[%emt 0:05:07]} 17. Qe2 {[%emt 0:13:35]} e5 {[%emt 0:03:26]} 18. d4 $40 {[%emt 0:00:57][%mdl 128] White has strong attack.} h5 {[%emt 0:06:38] [#]} 19. Bb2 {[%emt 0:17:18]} (19. dxe5 $6 dxe5 20. h3 (20. Qxe5 Bxb4 21. Rxb4 Rhe8 $11) 20... Qd3 21. Qxe5 (21. Qxd3 Rxd3 22. Kf1 Rhd8 $11) 21... Bf6 22. Qe6+ Kb7 $14) (19. c5 $142 $1) 19... Qa4 {[%emt 0:08:31]} (19... Bf6 $16) 20. b5 {[%emt 0:03:41]} (20. dxe5 $18 Kb8 21. e6) 20... axb5 $14 {[%emt 0:04:23]} 21. cxb5 {[%emt 0:00:04][%cal Bc4b5,Bb5c6][%mdl 32]} ({Reject} 21. dxe5 bxc4 22. e6 Qc6 $15) 21... Bf6 {[%emt 0:01:16]} 22. Rbc1 {[%emt 0:07:23]} (22. d5 $14) 22... exd4 $11 {[%emt 0:04:23]} 23. Rc4 {[%emt 0:03:16]} Qxa2 {[%emt 0:03:00]} 24. Qc2 {[%emt 0:04:49]} c5 {[%emt 0:07:11][%mdl 8192]} (24... Rd7 $2 25. Ra1 (25. Rc1 c5 $11) 25... Qxa1+ 26. Bxa1 $18) (24... Kb8 $1 $11 25. Rxc7 Qa5) 25. bxc6 $18 {[%emt 0:00:39]} d3 $2 {[%emt 0:00:41]} (25... b5 26. Rb4 (26. Qf5+ Kc7 $16) 26... Qd5) 26. Qxd3 {[%emt 0:00:05] Hoping for Bxf6.} Qxb2 {[%emt 0:00:22]} 27. Rc2 {[%emt 0:00:52] White mates.} Qxc2 {[%emt 0:02:22]} 28. Qa6+ {[%emt 0:00:06]} Kc7 {[%emt 0:00:06]} 29. Qb7# {[%emt 0:00:03] Weighted Error Value: White=0.21 (precise) /Black=0.69} 1-0